[Event "Early-Titled-Tuesday-Blitz-April-23-2024"]
[Site "Chess.com"]
[Date "2024.04.23"]
[Round "1"]
[White "AlexPapasimakopoulos"]
[Black "inagreV"]
[Result "1-0"]
[WhiteElo "2681"]
[BlackElo "2371"]
[TimeControl "180+1"]
[EndTime "8:01:06 PDT"]
[Termination "AlexPapasimakopoulos won by resignation"]

1. d4 {[%clk 0:03:00.9]} 1... Nf6 {[%clk 0:02:59.8]} 2. c4 {[%clk 0:03:00.7]}
2... g6 {[%clk 0:02:59.8]} 3. Nf3 {[%clk 0:02:57.4]} 3... Bg7 {[%clk 0:03:00]}
4. Nc3 {[%clk 0:02:57.8]} 4... O-O {[%clk 0:03:00]} 5. Bg5 {[%clk 0:02:56.6]}
5... c5 {[%clk 0:02:58.7]} 6. d5 {[%clk 0:02:56.5]} 6... d6 {[%clk 0:02:58.2]}
7. e4 {[%clk 0:02:55.6]} 7... h6 {[%clk 0:02:58.3]} 8. Bf4 {[%clk 0:02:54.5]}
8... Na6 {[%clk 0:02:56.7]} 9. Bd3 {[%clk 0:02:53.8]} 9... Nc7 {[%clk 0:02:56]}
10. h3 {[%clk 0:02:53.9]} 10... a6 {[%clk 0:02:50.8]} 11. a4 {[%clk 0:02:53.3]}
11... b6 {[%clk 0:02:51.1]} 12. O-O {[%clk 0:02:52.7]} 12... Nd7 {[%clk
0:02:49.4]} 13. Re1 {[%clk 0:02:52.4]} 13... Rb8 {[%clk 0:02:49]} 14. e5 {[%clk
0:02:52.4]} 14... dxe5 {[%clk 0:02:49]} 15. Nxe5 {[%clk 0:02:53.3]} 15... Nxe5
{[%clk 0:02:49.4]} 16. Bxe5 {[%clk 0:02:54.2]} 16... Ne8 {[%clk 0:02:49]} 17.
Bxb8 {[%clk 0:02:52.5]} 1-0

[Event "Early-Titled-Tuesday-Blitz-April-23-2024"]
[Site "Chess.com"]
[Date "2024.04.23"]
[Round "1"]
[White "dropstoneDP"]
[Black "subham777"]
[Result "1-0"]
[WhiteElo "3030"]
[BlackElo "2542"]
[TimeControl "180+1"]
[EndTime "8:02:00 PDT"]
[Termination "dropstoneDP won by resignation"]

1. e4 {[%clk 0:03:00.9]} 1... e6 {[%clk 0:02:58.2]} 2. d4 {[%clk 0:03:00.5]}
2... d5 {[%clk 0:02:57.8]} 3. Nc3 {[%clk 0:02:59.9]} 3... Nf6 {[%clk 0:02:57.6]}
4. e5 {[%clk 0:02:58.9]} 4... Nfd7 {[%clk 0:02:57.8]} 5. f4 {[%clk 0:02:59.5]}
5... c5 {[%clk 0:02:57.8]} 6. Nf3 {[%clk 0:03:00.1]} 6... Nc6 {[%clk 0:02:58.1]}
7. Be3 {[%clk 0:03:00.7]} 7... Be7 {[%clk 0:02:57.6]} 8. Qd2 {[%clk 0:02:58.5]}
8... a6 {[%clk 0:02:57.4]} 9. a3 {[%clk 0:02:58.6]} 9... b5 {[%clk 0:02:56.8]}
10. Bd3 {[%clk 0:02:57.8]} 10... Qb6 {[%clk 0:02:55]} 11. Bf2 {[%clk 0:02:57.8]}
11... Bb7 {[%clk 0:02:50.7]} 12. O-O {[%clk 0:02:56.5]} 12... g6 {[%clk
0:02:50]} 13. Kh1 {[%clk 0:02:55.2]} 13... h5 {[%clk 0:02:46.8]} 14. dxc5 {[%clk
0:02:51.5]} 14... Bxc5 {[%clk 0:02:46.3]} 15. Bxc5 {[%clk 0:02:51.2]} 15... Nxc5
{[%clk 0:02:45.9]} 16. b4 {[%clk 0:02:49.9]} 16... Nxd3 {[%clk 0:02:44.5]} 17.
cxd3 {[%clk 0:02:50.8]} 17... Rc8 {[%clk 0:02:40.6]} 18. Rac1 {[%clk 0:02:50.3]}
18... Nd4 {[%clk 0:02:29.7]} 19. Qf2 {[%clk 0:02:45.7]} 1-0

[Event "Early-Titled-Tuesday-Blitz-April-23-2024"]
[Site "Chess.com"]
[Date "2024.04.23"]
[Round "1"]
[White "profedechess93"]
[Black "Naruto75_3"]
[Result "1-0"]
[WhiteElo "2669"]
[BlackElo "2360"]
[TimeControl "180+1"]
[EndTime "8:02:05 PDT"]
[Termination "profedechess93 won by resignation"]

1. e4 {[%clk 0:03:00.9]} 1... c5 {[%clk 0:02:23]} 2. Nf3 {[%clk 0:03:00.2]} 2...
d6 {[%clk 0:02:22.2]} 3. Bb5+ {[%clk 0:02:59.9]} 3... Nd7 {[%clk 0:02:20.3]} 4.
d4 {[%clk 0:02:59.7]} 4... cxd4 {[%clk 0:02:19.3]} 5. Qxd4 {[%clk 0:03:00.6]}
5... a6 {[%clk 0:02:18.6]} 6. Bxd7+ {[%clk 0:03:00.9]} 6... Bxd7 {[%clk
0:02:19.5]} 7. Bg5 {[%clk 0:03:01.4]} 7... Nf6 {[%clk 0:02:18]} 8. Nc3 {[%clk
0:03:01.5]} 8... e6 {[%clk 0:02:16.4]} 9. O-O-O {[%clk 0:03:00.9]} 9... Bc6
{[%clk 0:02:16.1]} 10. e5 {[%clk 0:03:01]} 10... dxe5 {[%clk 0:02:15.3]} 11.
Qxe5 {[%clk 0:03:01.6]} 11... Nd7 {[%clk 0:02:08.6]} 12. Bxd8 {[%clk 0:02:39.1]}
12... Nxe5 {[%clk 0:02:06.1]} 13. Nxe5 {[%clk 0:02:39.8]} 13... Rxd8 {[%clk
0:02:04.7]} 14. Rxd8+ {[%clk 0:02:38.9]} 14... Kxd8 {[%clk 0:02:05.6]} 15. Nxf7+
{[%clk 0:02:39.5]} 15... Ke8 {[%clk 0:02:05.7]} 16. Nxh8 {[%clk 0:02:40.4]} 1-0

[Event "Early-Titled-Tuesday-Blitz-April-23-2024"]
[Site "Chess.com"]
[Date "2024.04.23"]
[Round "1"]
[White "DishonorOnYourCow"]
[Black "AnishOnYoutube"]
[Result "0-1"]
[WhiteElo "2546"]
[BlackElo "3072"]
[TimeControl "180+1"]
[EndTime "8:02:14 PDT"]
[Termination "AnishOnYoutube won by resignation"]

1. d4 {[%clk 0:03:00.9]} 1... Nf6 {[%clk 0:03:00.1]} 2. c4 {[%clk 0:03:00.5]}
2... e6 {[%clk 0:03:00.7]} 3. Nf3 {[%clk 0:03:00.3]} 3... Bb4+ {[%clk
0:03:00.1]} 4. Nbd2 {[%clk 0:03:00.3]} 4... O-O {[%clk 0:02:59.6]} 5. a3 {[%clk
0:03:00.5]} 5... Be7 {[%clk 0:03:00.3]} 6. e4 {[%clk 0:03:00.5]} 6... d6 {[%clk
0:03:01]} 7. Be2 {[%clk 0:03:00.4]} 7... a5 {[%clk 0:02:59.6]} 8. O-O {[%clk
0:02:54.4]} 8... Nfd7 {[%clk 0:02:53.9]} 9. b3 {[%clk 0:02:48.6]} 9... e5 {[%clk
0:02:53]} 10. Bb2 {[%clk 0:02:47.2]} 10... exd4 {[%clk 0:02:53.4]} 11. Nxd4
{[%clk 0:02:44.9]} 11... Bf6 {[%clk 0:02:53.9]} 12. Qc2 {[%clk 0:02:41.5]} 12...
Re8 {[%clk 0:02:50.6]} 13. Nf5 {[%clk 0:02:38]} 13... Nc6 {[%clk 0:02:47.6]} 14.
f3 {[%clk 0:02:31.5]} 14... Nc5 {[%clk 0:02:44.4]} 15. Ne3 {[%clk 0:02:18.4]}
15... Nd4 {[%clk 0:02:41.3]} 0-1

[Event "Early-Titled-Tuesday-Blitz-April-23-2024"]
[Site "Chess.com"]
[Date "2024.04.23"]
[Round "1"]
[White "stasOR4ik"]
[Black "only_strong_moves"]
[Result "1-0"]
[WhiteElo "2429"]
[BlackElo "2718"]
[TimeControl "180+1"]
[EndTime "8:02:40 PDT"]
[Termination "stasOR4ik won by resignation"]

1. e4 {[%clk 0:03:00.9]} 1... e5 {[%clk 0:02:59.7]} 2. Nf3 {[%clk 0:03:00.2]}
2... Nc6 {[%clk 0:03:00.3]} 3. Bc4 {[%clk 0:03:00.4]} 3... Nf6 {[%clk
0:03:00.2]} 4. Nc3 {[%clk 0:02:59.3]} 4... Bb4 {[%clk 0:03:00.8]} 5. O-O {[%clk
0:02:57.7]} 5... Bxc3 {[%clk 0:03:01.1]} 6. dxc3 {[%clk 0:02:57.9]} 6... h6
{[%clk 0:03:00.1]} 7. Qe2 {[%clk 0:02:54.2]} 7... d6 {[%clk 0:03:00.3]} 8. h3
{[%clk 0:02:53.8]} 8... O-O {[%clk 0:03:00.6]} 9. Nh2 {[%clk 0:02:53.9]} 9...
Be6 {[%clk 0:03:00.2]} 10. Bxe6 {[%clk 0:02:52.3]} 10... fxe6 {[%clk 0:03:01.1]}
11. Ng4 {[%clk 0:02:51.7]} 11... Qe7 {[%clk 0:02:50.3]} 12. Rd1 {[%clk 0:02:44]}
12... Rad8 {[%clk 0:02:42]} 13. Rd3 {[%clk 0:02:43.7]} 13... Nh5 {[%clk
0:02:39.8]} 14. Nxh6+ {[%clk 0:02:39]} 14... gxh6 {[%clk 0:02:38.7]} 15. Qxh5
{[%clk 0:02:39.5]} 15... Rf7 {[%clk 0:02:17]} 16. Bxh6 {[%clk 0:02:38.2]} 16...
Rh7 {[%clk 0:02:03.4]} 17. Qg6+ {[%clk 0:02:11.9]} 17... Kh8 {[%clk 0:02:02.2]}
18. Bg5 {[%clk 0:02:09.6]} 18... Qe8 {[%clk 0:02:02.5]} 19. Bf6+ {[%clk
0:02:09]} 1-0

[Event "Early-Titled-Tuesday-Blitz-April-23-2024"]
[Site "Chess.com"]
[Date "2024.04.23"]
[Round "1"]
[White "Jakhongir-Vakhidov"]
[Black "Viktoker"]
[Result "1-0"]
[WhiteElo "2675"]
[BlackElo "2367"]
[TimeControl "180+1"]
[EndTime "8:02:58 PDT"]
[Termination "Jakhongir-Vakhidov won by resignation"]

1. c4 {[%clk 0:03:00.9]} 1... e6 {[%clk 0:02:58.5]} 2. Nc3 {[%clk 0:03:00.9]}
2... f5 {[%clk 0:02:58.1]} 3. d4 {[%clk 0:02:59.2]} 3... Nf6 {[%clk 0:02:58]} 4.
a3 {[%clk 0:02:59.9]} 4... Be7 {[%clk 0:02:56.9]} 5. Bf4 {[%clk 0:03:00.2]} 5...
O-O {[%clk 0:02:54.1]} 6. e3 {[%clk 0:03:00.9]} 6... b6 {[%clk 0:02:53.9]} 7.
Bg3 {[%clk 0:02:52.3]} 7... Bb7 {[%clk 0:02:54.1]} 8. Nh3 {[%clk 0:02:52.8]}
8... Qe8 {[%clk 0:02:50.6]} 9. Bxc7 {[%clk 0:02:47.9]} 9... d6 {[%clk
0:02:50.4]} 10. Nf4 {[%clk 0:02:40.3]} 10... Qd7 {[%clk 0:02:48.6]} 11. Bxb8
{[%clk 0:02:37.9]} 11... Raxb8 {[%clk 0:02:49.5]} 12. h4 {[%clk 0:02:31.9]}
12... a6 {[%clk 0:02:33.4]} 13. Be2 {[%clk 0:02:30.8]} 13... Qd8 {[%clk
0:02:08.6]} 14. Nxe6 {[%clk 0:02:30.1]} 14... Qc8 {[%clk 0:02:06.7]} 15. Nxf8
{[%clk 0:02:30.1]} 15... Qxf8 {[%clk 0:02:05.5]} 16. Bf3 {[%clk 0:02:30.1]}
16... Ne4 {[%clk 0:02:01]} 17. Nd5 {[%clk 0:02:27.7]} 17... Bxd5 {[%clk
0:02:00.7]} 18. cxd5 {[%clk 0:02:28.6]} 18... b5 {[%clk 0:01:54.3]} 19. Bxe4
{[%clk 0:02:27.4]} 19... fxe4 {[%clk 0:01:54.3]} 20. Qg4 {[%clk 0:02:27.8]}
20... Rc8 {[%clk 0:01:53.5]} 21. O-O {[%clk 0:02:23.7]} 21... Rc2 {[%clk
0:01:52.5]} 22. Rac1 {[%clk 0:02:23.7]} 22... Rxb2 {[%clk 0:01:52.2]} 23. Rc8
{[%clk 0:02:22.4]} 23... Bd8 {[%clk 0:01:51.3]} 24. Qe6+ {[%clk 0:02:20.4]}
24... Kh8 {[%clk 0:01:51.7]} 25. Qd7 {[%clk 0:02:19.8]} 1-0

[Event "Early-Titled-Tuesday-Blitz-April-23-2024"]
[Site "Chess.com"]
[Date "2024.04.23"]
[Round "1"]
[White "bubeliang"]
[Black "LionelMessiFCB"]
[Result "0-1"]
[WhiteElo "2779"]
[BlackElo "2480"]
[TimeControl "180+1"]
[EndTime "8:03:09 PDT"]
[Termination "LionelMessiFCB won by resignation"]

1. e4 {[%clk 0:02:59.1]} 1... c5 {[%clk 0:02:56.5]} 2. c3 {[%clk 0:02:57.6]}
2... e5 {[%clk 0:02:53.7]} 3. Nf3 {[%clk 0:02:57.2]} 3... Nc6 {[%clk 0:02:53.1]}
4. Bc4 {[%clk 0:02:56.2]} 4... Nf6 {[%clk 0:02:52.9]} 5. Ng5 {[%clk 0:02:56.3]}
5... d5 {[%clk 0:02:52.8]} 6. exd5 {[%clk 0:02:57.2]} 6... Nxd5 {[%clk
0:02:51.1]} 7. Qh5 {[%clk 0:02:57.5]} 7... g6 {[%clk 0:02:44.3]} 8. Qf3 {[%clk
0:02:57.1]} 8... Be6 {[%clk 0:02:30.7]} 9. Nxe6 {[%clk 0:02:56]} 9... fxe6
{[%clk 0:02:31.6]} 10. O-O {[%clk 0:02:54.3]} 10... Bg7 {[%clk 0:02:30.9]} 11.
d3 {[%clk 0:02:48.4]} 11... Qd7 {[%clk 0:02:28.4]} 12. Be3 {[%clk 0:02:47.1]}
12... b6 {[%clk 0:02:20.6]} 13. Nd2 {[%clk 0:02:44.3]} 13... Na5 {[%clk
0:02:20.1]} 14. Ne4 {[%clk 0:02:38.9]} 14... Rf8 {[%clk 0:02:12.6]} 15. Qe2
{[%clk 0:02:35.6]} 15... Nxc4 {[%clk 0:02:12]} 16. dxc4 {[%clk 0:02:35.3]} 16...
Nxe3 {[%clk 0:02:08.3]} 17. Qxe3 {[%clk 0:02:33.4]} 17... O-O-O {[%clk
0:02:07.7]} 18. Rad1 {[%clk 0:02:32.7]} 18... Qxd1 {[%clk 0:02:06.1]} 19. Ng5
{[%clk 0:02:27.9]} 19... Bh6 {[%clk 0:01:57.7]} 20. Qe4 {[%clk 0:02:23.4]} 20...
Bxg5 {[%clk 0:01:41.6]} 21. Qa8+ {[%clk 0:02:20.3]} 21... Kc7 {[%clk 0:01:41.6]}
22. Qxa7+ {[%clk 0:02:20.7]} 22... Kc6 {[%clk 0:01:41.6]} 23. Qa4+ {[%clk
0:02:20.7]} 23... Qxa4 {[%clk 0:01:40.5]} 0-1

[Event "Early-Titled-Tuesday-Blitz-April-23-2024"]
[Site "Chess.com"]
[Date "2024.04.23"]
[Round "1"]
[White "RantomOpening"]
[Black "artin10862"]
[Result "0-1"]
[WhiteElo "2525"]
[BlackElo "2928"]
[TimeControl "180+1"]
[EndTime "8:03:21 PDT"]
[Termination "artin10862 won by resignation"]

1. c4 {[%clk 0:02:56.2]} 1... Nc6 {[%clk 0:02:50.7]} 2. Nf3 {[%clk 0:02:55.3]}
2... e5 {[%clk 0:02:50.2]} 3. Nc3 {[%clk 0:02:55.1]} 3... Nf6 {[%clk 0:02:49.6]}
4. e3 {[%clk 0:02:47.4]} 4... Bb4 {[%clk 0:02:40.7]} 5. Qc2 {[%clk 0:02:42.6]}
5... O-O {[%clk 0:02:36.3]} 6. Nd5 {[%clk 0:02:39.6]} 6... Re8 {[%clk
0:02:19.7]} 7. Bd3 {[%clk 0:02:28.4]} 7... h6 {[%clk 0:01:52.5]} 8. a3 {[%clk
0:02:25.7]} 8... Bf8 {[%clk 0:01:50.5]} 9. b4 {[%clk 0:02:10.8]} 9... e4 {[%clk
0:01:45.6]} 10. Nxf6+ {[%clk 0:02:10.6]} 10... Qxf6 {[%clk 0:01:45.3]} 11. Bxe4
{[%clk 0:02:10.2]} 11... Qxa1 {[%clk 0:01:30.5]} 12. Bh7+ {[%clk 0:02:09.9]}
12... Kh8 {[%clk 0:01:30.1]} 13. d4 {[%clk 0:02:10.1]} 13... Nxd4 {[%clk
0:01:27.4]} 14. Nxd4 {[%clk 0:02:10.4]} 14... Qxd4 {[%clk 0:01:27.1]} 15. O-O
{[%clk 0:02:10.7]} 15... Qh4 {[%clk 0:01:21.1]} 16. Be4 {[%clk 0:02:06.7]} 16...
Qxe4 {[%clk 0:01:20.5]} 0-1

[Event "Early-Titled-Tuesday-Blitz-April-23-2024"]
[Site "Chess.com"]
[Date "2024.04.23"]
[Round "1"]
[White "Gerasimenyuk_Miha"]
[Black "Antipov_Mikhail_Al"]
[Result "0-1"]
[WhiteElo "2499"]
[BlackElo "2879"]
[TimeControl "180+1"]
[EndTime "8:03:27 PDT"]
[Termination "Antipov_Mikhail_Al won by resignation"]

1. d4 {[%clk 0:02:56.8]} 1... Nf6 {[%clk 0:02:56.4]} 2. Nf3 {[%clk 0:02:57.7]}
2... d5 {[%clk 0:02:53.9]} 3. Bg5 {[%clk 0:02:57.8]} 3... Nc6 {[%clk 0:02:48.4]}
4. e3 {[%clk 0:02:54.4]} 4... Ne4 {[%clk 0:02:47.9]} 5. Bh4 {[%clk 0:02:53.9]}
5... f6 {[%clk 0:02:42.7]} 6. Nbd2 {[%clk 0:02:52.7]} 6... h5 {[%clk 0:02:41.9]}
7. Bg3 {[%clk 0:02:48]} 7... g5 {[%clk 0:02:37.9]} 8. h4 {[%clk 0:02:36.1]} 8...
Nxg3 {[%clk 0:02:35.4]} 9. fxg3 {[%clk 0:02:36]} 9... g4 {[%clk 0:02:34.5]} 10.
Nh2 {[%clk 0:02:30.1]} 10... Qd6 {[%clk 0:02:23.5]} 11. Kf2 {[%clk 0:02:28.5]}
11... e5 {[%clk 0:02:21.2]} 12. c3 {[%clk 0:02:27.1]} 12... Bh6 {[%clk
0:02:19.1]} 13. Bb5 {[%clk 0:02:24.2]} 13... O-O {[%clk 0:02:18.8]} 14. Rf1
{[%clk 0:02:09.2]} 14... Ne7 {[%clk 0:02:15.8]} 15. e4 {[%clk 0:01:57]} 15... f5
{[%clk 0:02:08.4]} 16. exd5 {[%clk 0:01:56.7]} 16... e4 {[%clk 0:02:01.5]} 17.
Nc4 {[%clk 0:01:46.5]} 17... Qxd5 {[%clk 0:01:58.3]} 18. Ba4 {[%clk 0:01:30.5]}
18... b5 {[%clk 0:01:58]} 0-1

[Event "Early-Titled-Tuesday-Blitz-April-23-2024"]
[Site "Chess.com"]
[Date "2024.04.23"]
[Round "1"]
[White "xberli"]
[Black "LaPiToB"]
[Result "1-0"]
[WhiteElo "2620"]
[BlackElo "2270"]
[TimeControl "180+1"]
[EndTime "8:03:52 PDT"]
[Termination "xberli won by resignation"]

1. d4 {[%clk 0:03:00.9]} 1... Nf6 {[%clk 0:02:59.3]} 2. c4 {[%clk 0:03:00.7]}
2... e6 {[%clk 0:02:59.3]} 3. Nc3 {[%clk 0:02:59.8]} 3... Bb4 {[%clk 0:02:58.4]}
4. a3 {[%clk 0:03:00.4]} 4... Bxc3+ {[%clk 0:02:57.8]} 5. bxc3 {[%clk
0:03:01.3]} 5... O-O {[%clk 0:02:57.2]} 6. Bg5 {[%clk 0:03:01.3]} 6... c5 {[%clk
0:02:53.3]} 7. e3 {[%clk 0:02:44.2]} 7... cxd4 {[%clk 0:02:49.4]} 8. exd4 {[%clk
0:02:43.6]} 8... d5 {[%clk 0:02:45.2]} 9. Bd3 {[%clk 0:02:41.5]} 9... dxc4
{[%clk 0:02:43.4]} 10. Bc2 {[%clk 0:02:40.7]} 10... Nbd7 {[%clk 0:02:40.8]} 11.
Nf3 {[%clk 0:02:36.3]} 11... Qa5 {[%clk 0:02:34.2]} 12. O-O {[%clk 0:02:29.3]}
12... b6 {[%clk 0:02:24.2]} 13. Re1 {[%clk 0:02:26.3]} 13... Bb7 {[%clk
0:02:22.2]} 14. Ne5 {[%clk 0:02:25.8]} 14... Qd5 {[%clk 0:02:14.4]} 15. f3
{[%clk 0:02:23.4]} 15... Nxe5 {[%clk 0:01:58.7]} 16. Rxe5 {[%clk 0:02:24.3]}
16... Qd8 {[%clk 0:01:58.5]} 17. Qe1 {[%clk 0:02:21]} 17... h6 {[%clk
0:01:46.8]} 18. Bd2 {[%clk 0:02:13.9]} 18... Nd7 {[%clk 0:01:39.8]} 19. Rh5
{[%clk 0:02:07.9]} 19... Qf6 {[%clk 0:01:36.6]} 20. Qg3 {[%clk 0:02:04.7]} 20...
Kh8 {[%clk 0:01:24.5]} 21. Re1 {[%clk 0:02:04.4]} 21... Bd5 {[%clk 0:01:16]} 22.
Bg5 {[%clk 0:02:01.8]} 1-0

[Event "Early-Titled-Tuesday-Blitz-April-23-2024"]
[Site "Chess.com"]
[Date "2024.04.23"]
[Round "1"]
[White "microbear"]
[Black "Martial2008"]
[Result "0-1"]
[WhiteElo "2371"]
[BlackElo "2683"]
[TimeControl "180+1"]
[EndTime "8:04:00 PDT"]
[Termination "Martial2008 won by resignation"]

1. e4 {[%clk 0:02:58.7]} 1... e5 {[%clk 0:02:59]} 2. Nf3 {[%clk 0:02:58.9]} 2...
Nc6 {[%clk 0:02:58.4]} 3. Bc4 {[%clk 0:02:58.7]} 3... Nf6 {[%clk 0:02:55.9]} 4.
d3 {[%clk 0:02:57.9]} 4... h6 {[%clk 0:02:55.2]} 5. c3 {[%clk 0:02:57.1]} 5...
d6 {[%clk 0:02:54.1]} 6. h3 {[%clk 0:02:46.9]} 6... g6 {[%clk 0:02:52.5]} 7. Bb3
{[%clk 0:02:46.5]} 7... Bg7 {[%clk 0:02:52.7]} 8. O-O {[%clk 0:02:46.7]} 8...
O-O {[%clk 0:02:52.2]} 9. Be3 {[%clk 0:02:45.2]} 9... Na5 {[%clk 0:02:51]} 10.
Bc2 {[%clk 0:02:45.2]} 10... c5 {[%clk 0:02:51.3]} 11. b4 {[%clk 0:02:44.8]}
11... cxb4 {[%clk 0:02:50.1]} 12. cxb4 {[%clk 0:02:45.7]} 12... Nc6 {[%clk
0:02:50.7]} 13. a3 {[%clk 0:02:45.8]} 13... a6 {[%clk 0:02:45.3]} 14. Nbd2
{[%clk 0:02:44.6]} 14... Be6 {[%clk 0:02:44.9]} 15. Rc1 {[%clk 0:02:42.6]} 15...
d5 {[%clk 0:02:43.1]} 16. exd5 {[%clk 0:02:39.3]} 16... Nxd5 {[%clk 0:02:41.2]}
17. Ne4 {[%clk 0:02:39.5]} 17... Nd4 {[%clk 0:02:29.1]} 18. Bxd4 {[%clk
0:02:35.5]} 18... exd4 {[%clk 0:02:30]} 19. Nc5 {[%clk 0:02:35.5]} 19... Bf5
{[%clk 0:02:29.5]} 20. Re1 {[%clk 0:02:33.6]} 20... b6 {[%clk 0:02:28]} 21. Ne4
{[%clk 0:02:31.2]} 21... Nc3 {[%clk 0:02:27.9]} 22. Nxc3 {[%clk 0:02:30.1]}
22... dxc3 {[%clk 0:02:28.8]} 23. d4 {[%clk 0:02:30.3]} 23... Be6 {[%clk
0:02:23]} 24. Qd3 {[%clk 0:02:29.3]} 24... Rc8 {[%clk 0:02:22.3]} 25. Ne5 {[%clk
0:02:25.6]} 25... Qd5 {[%clk 0:02:18]} 26. Qe3 {[%clk 0:02:23.3]} 26... Rfd8
{[%clk 0:02:16.1]} 27. Nxg6 {[%clk 0:02:21.2]} 27... Qxd4 {[%clk 0:01:36.1]} 28.
Ne7+ {[%clk 0:02:15.8]} 28... Kf8 {[%clk 0:01:36.2]} 29. Nxc8 {[%clk 0:02:12]}
29... Qxe3 {[%clk 0:01:36]} 30. Rxe3 {[%clk 0:02:09]} 30... Rxc8 {[%clk
0:01:35.9]} 31. Kh2 {[%clk 0:02:06.4]} 31... h5 {[%clk 0:01:27.2]} 32. Be4
{[%clk 0:02:05.1]} 32... Bh6 {[%clk 0:01:23.3]} 33. Rexc3 {[%clk 0:02:03.5]}
33... Bxc1 {[%clk 0:01:22.4]} 0-1

[Event "Early-Titled-Tuesday-Blitz-April-23-2024"]
[Site "Chess.com"]
[Date "2024.04.23"]
[Round "1"]
[White "Casablanca"]
[Black "Shivananda1964"]
[Result "0-1"]
[WhiteElo "2637"]
[BlackElo "2360"]
[TimeControl "180+1"]
[EndTime "8:04:06 PDT"]
[Termination "Shivananda1964 won by resignation"]

1. c4 {[%clk 0:03:00.9]} 1... e5 {[%clk 0:02:57.9]} 2. g3 {[%clk 0:03:00.2]}
2... Nf6 {[%clk 0:02:54.7]} 3. Bg2 {[%clk 0:03:00.3]} 3... d5 {[%clk 0:02:54.7]}
4. cxd5 {[%clk 0:03:01.2]} 4... Nxd5 {[%clk 0:02:55.1]} 5. Nc3 {[%clk
0:03:01.9]} 5... Nb6 {[%clk 0:02:55.3]} 6. Nf3 {[%clk 0:03:01.8]} 6... Nc6
{[%clk 0:02:55.4]} 7. O-O {[%clk 0:03:02.3]} 7... Be7 {[%clk 0:02:55.8]} 8. d3
{[%clk 0:02:58.8]} 8... Be6 {[%clk 0:02:55.5]} 9. a3 {[%clk 0:02:59.2]} 9... O-O
{[%clk 0:02:54.4]} 10. b4 {[%clk 0:02:56.7]} 10... a5 {[%clk 0:02:54.5]} 11. b5
{[%clk 0:02:56.6]} 11... Nd4 {[%clk 0:02:54.8]} 12. Nxd4 {[%clk 0:02:56.3]}
12... exd4 {[%clk 0:02:54.3]} 13. Na4 {[%clk 0:02:55.3]} 13... Bd5 {[%clk
0:02:53.5]} 14. Nxb6 {[%clk 0:02:41]} 14... cxb6 {[%clk 0:02:53.7]} 15. Qa4
{[%clk 0:02:36.4]} 15... Bxg2 {[%clk 0:02:51.8]} 16. Kxg2 {[%clk 0:02:37.3]}
16... Bc5 {[%clk 0:02:51.4]} 17. Bb2 {[%clk 0:02:35.2]} 17... Re8 {[%clk
0:02:50.1]} 18. Rfe1 {[%clk 0:02:35.2]} 18... Qd5+ {[%clk 0:02:38.9]} 19. Kg1
{[%clk 0:02:34.9]} 19... Rad8 {[%clk 0:02:39.4]} 20. Rac1 {[%clk 0:02:35.1]}
20... h5 {[%clk 0:02:38.3]} 21. Qc4 {[%clk 0:02:34.2]} 21... Qf5 {[%clk
0:02:31.6]} 22. Rc2 {[%clk 0:02:04.4]} 22... Re6 {[%clk 0:02:30]} 23. Bc1 {[%clk
0:02:04]} 23... h4 {[%clk 0:02:28.5]} 24. Kg2 {[%clk 0:01:17.2]} 24... h3+
{[%clk 0:02:04.7]} 25. Kg1 {[%clk 0:01:15.5]} 25... Qf3 {[%clk 0:02:03.1]} 0-1

[Event "Early-Titled-Tuesday-Blitz-April-23-2024"]
[Site "Chess.com"]
[Date "2024.04.23"]
[Round "1"]
[White "Oleksandr_Bortnyk"]
[Black "ozates"]
[Result "1-0"]
[WhiteElo "3107"]
[BlackElo "2554"]
[TimeControl "180+1"]
[EndTime "8:04:10 PDT"]
[Termination "Oleksandr_Bortnyk won by resignation"]

1. e4 {[%clk 0:03:00.9]} 1... e5 {[%clk 0:03:00]} 2. Bc4 {[%clk 0:02:59.5]} 2...
Nc6 {[%clk 0:02:59.3]} 3. d3 {[%clk 0:02:57.5]} 3... Bc5 {[%clk 0:02:58.2]} 4.
Nc3 {[%clk 0:02:55.1]} 4... Nf6 {[%clk 0:02:56.2]} 5. Bg5 {[%clk 0:02:54.4]}
5... h6 {[%clk 0:02:55.4]} 6. Bh4 {[%clk 0:02:51]} 6... Be7 {[%clk 0:02:55.3]}
7. a3 {[%clk 0:02:32.2]} 7... d6 {[%clk 0:02:55.6]} 8. Nf3 {[%clk 0:02:24]} 8...
Bg4 {[%clk 0:02:53.4]} 9. Bxf6 {[%clk 0:02:15.8]} 9... Bxf6 {[%clk 0:02:53.4]}
10. h3 {[%clk 0:02:16.3]} 10... Be6 {[%clk 0:02:49.7]} 11. Nd5 {[%clk
0:02:13.6]} 11... O-O {[%clk 0:02:49.3]} 12. O-O {[%clk 0:02:11.2]} 12... g6
{[%clk 0:02:46]} 13. b4 {[%clk 0:02:04.5]} 13... Bg7 {[%clk 0:02:45.9]} 14. c3
{[%clk 0:02:05]} 14... Kh7 {[%clk 0:02:45.5]} 15. a4 {[%clk 0:01:57.9]} 15...
Ne7 {[%clk 0:02:42.5]} 16. Nxe7 {[%clk 0:01:52.8]} 16... Qxe7 {[%clk 0:02:42.8]}
17. Bxe6 {[%clk 0:01:52]} 17... Qxe6 {[%clk 0:02:43.4]} 18. Re1 {[%clk
0:01:50.4]} 18... f5 {[%clk 0:02:41.1]} 19. Nd2 {[%clk 0:01:49.1]} 19... d5
{[%clk 0:02:33.3]} 20. Qb3 {[%clk 0:01:45.6]} 20... fxe4 {[%clk 0:02:31]} 21.
dxe4 {[%clk 0:01:42.5]} 21... Qf6 {[%clk 0:02:20.3]} 22. Re2 {[%clk 0:01:39.9]}
22... d4 {[%clk 0:02:16.7]} 23. cxd4 {[%clk 0:01:26.5]} 23... exd4 {[%clk
0:02:16.2]} 24. e5 {[%clk 0:01:27.4]} 24... Qf5 {[%clk 0:02:10.7]} 25. Nf3
{[%clk 0:01:25.1]} 25... Rad8 {[%clk 0:02:09.8]} 26. Rd1 {[%clk 0:01:22.8]}
26... d3 {[%clk 0:01:49.7]} 27. Re3 {[%clk 0:01:22.3]} 27... d2 {[%clk 0:01:50]}
28. Re2 {[%clk 0:01:18.9]} 28... Rd4 {[%clk 0:01:49.3]} 29. Nxd4 {[%clk
0:01:17.9]} 1-0